fUSD/lending_fUSD_20240222
["ID","MTS","AMOUNT","RATE_DAILY","PERIOD"]
[314917386,1708637440837,-302.0,0.00032295,2]
[314917387,1708637440847,-338.0,0.00032295,2]
[314917388,1708637440856,-390.0,0.00032295,2]
[314917389,1708637440866,-455.0,0.00032295,2]
[314917390,1708637440876,-1869.0,0.00032295,2]
[314917391,1708637440885,-1517.401,0.00032295,2]
[314917392,1708637440894,-19886.0,0.00032295,2]
[314917393,1708637440903,-2694.0,0.00032295,2]
[314917394,1708637440913,-1039.0,0.00032295,2]
[314917395,1708637440921,-955.0,0.00032295,2]
[314917396,1708637440930,-458.0,0.00032295,2]
[314917397,1708637440940,-163.585,0.00032295,2]
[314917398,1708637440949,-533.0,0.00032295,2]
[314917399,1708637440958,-153.64,0.00032321,2]
[314917400,1708637440968,-172.678369,0.00032325,2]
[314917401,1708637440977,-389.3709,0.00032325,2]
[314917402,1708637440986,-1961.869011,0.00032325,2]
[314917403,1708637440995,-1879.33046,0.00032325,2]
[314917404,1708637441004,-173.364822,0.00032325,2]
[314917405,1708637441014,-229.74,0.00032331,2]
[314917406,1708637441023,-1337.22911695,0.00032425,2]
[314917407,1708637441033,-210.0,0.00032487,3]
[314917408,1708637441042,-151.26368539,0.00032551,2]
[314917409,1708637441051,-228.95,0.00032556,2]
[314917410,1708637441061,-171.0,0.00032556,2]
[314917411,1708637441070,-250.0,0.00032561,2]
[314917412,1708637441079,-160.7144,0.00032576,2]
[314917413,1708637441088,-531.0535035,0.00032576,2]
[314917414,1708637441097,-155.0,0.00032617,2]
[314917415,1708637441106,-1906.89312668,0.00032628,6]
[314917416,1708637441116,-151.0,0.00032633,7]
[314917417,1708637441125,-151.022306,0.00032648,2]
[314917418,1708637441134,-151.022306,0.00032648,2]
[314917419,1708637441143,-151.022306,0.00032648,2]
[314917420,1708637441153,-151.022306,0.00032648,2]
[314917421,1708637441162,-151.022306,0.00032648,2]
[314917422,1708637441172,-151.022306,0.00032648,2]
[314917423,1708637441181,-151.022306,0.00032648,2]
[314917424,1708637441190,-151.022306,0.00032648,2]
[314917425,1708637441200,-151.022306,0.00032648,2]
[314917426,1708637441211,-151.022306,0.00032648,2]
[314917427,1708637441222,-992540.93835277,0.00032664,2]
[314917428,1708637441231,-206.0,0.00032664,12]
[314917429,1708637441241,-157.0,0.00032665,5]
[314917430,1708637441251,-937790.56719002,0.00032675,4]
[314917431,1708637441313,-2065.12051418,0.00032675,4]
[314917432,1708637441656,-315.24,0.00032675,4]
[314917433,1708637441672,-8933.8920718,0.00032675,4]
[314917435,1708637442942,-1609.66046935,0.00032675,4]
[314917436,1708637442954,-1704.14634174,0.00032675,4]
[314917437,1708637442965,-17587.72866048,0.00032675,4]
[314917438,1708637442976,-24875.50162865,0.00032675,4]
[314917439,1708637442999,-975.15003434,0.00032675,4]
[314917440,1708637443010,-394.96999999,0.00032675,4]
[314917441,1708637443056,-219079.37128732,0.00032675,4]
[314917442,1708637443113,-542.15949051,0.00032675,4]
[314917443,1708637443170,-2324.87968152,0.00032675,4]
[314917444,1708637443239,-622.56932309,0.00032675,4]
[314917445,1708637443303,-263.95605343,0.00032675,4]
[314917448,1708637443360,-0.0097462,0.00032675,4]
[314917457,1708637445958,-10248.39,0.00032675,4]
[314917458,1708637446242,-2384.27296181,0.00032675,4]
[314917459,1708637446254,-51723.0,0.00032675,4]
[314917853,1708638159983,750.0,0.00025,3]
[314917854,1708638161116,800.0,0.00027,3]
[314917855,1708638282071,-151.0,0.00032493,120]
[314917856,1708638282343,-600.0,0.00034,35]
[314917857,1708638282508,-1200.0,0.00035,36]
[314917858,1708638282628,-600.0,0.00036,37]
[314917859,1708638282667,-161.14,0.00036438,60]
[314917860,1708638282696,-161.14,0.00036438,89]
[314917861,1708638282732,-1200.0,0.00038,39]
[314917862,1708638283329,-3000.0,0.00039,37]
[314917863,1708638283385,-600.0,0.00039,36]
[314917864,1708638283410,-3000.0,0.0003901,37]
[314917865,1708638283433,-5498.765414,0.0003902,37]
[314917866,1708638283471,-956.03715815,0.0004,60]
[314917867,1708638283494,-7677.4773355,0.0004,60]
[314917868,1708638283517,-1200.0,0.0004,41]
[314917869,1708638283538,-720.49939743,0.0004,120]
[314917870,1708638283567,-300.0,0.00041,42]
[314917871,1708638283597,-163.0,0.0004197,120]
[314917872,1708638283619,-163.0,0.0004197,120]
[314917873,1708638283646,-163.0,0.0004198,120]
[314917874,1708638283669,-163.0,0.0004198,120]
[314917875,1708638283693,-252.02,0.0004198,120]
[314917876,1708638283715,-163.0,0.0004198,120]
[314917877,1708638283737,-163.0,0.0004198,120]
[314917878,1708638283759,-200.0,0.00041987,33]
[314917879,1708638283783,-163.0,0.0004199,120]
[314917880,1708638283805,-163.0,0.0004199,120]
[314917881,1708638283826,-150.5,0.0004199,120]
[314917882,1708638283847,-163.0,0.0004199,120]
[314917883,1708638283871,-163.0,0.0004199,120]
[314917884,1708638283893,-841.0223,0.00042,59]
[314917885,1708638283915,-160.0,0.00042,77]
[314917886,1708638283940,-1000.0,0.00042465,40]
[314917887,1708638283970,-547.19456258,0.0004376,60]
[314917888,1708638283994,-2500.0,0.000438,120]
[314917889,1708638284019,-3860.0,0.00043835,50]
[314917890,1708638284041,-1000.0,0.00043835,50]
[314917891,1708638285417,1159.71,0.00043,33]
[314917892,1708638361419,156.65599634,0.00028,3]
[314917893,1708638483766,180.69,0.00024375,2]
[314917894,1708638537361,-184.98362258,0.000289,2]
[314917895,1708638537385,-188.54114882,0.0002892,2]
[314917896,1708638537409,-850.0,0.00029,3]
[314917897,1708638537436,-192.58282484,0.0002912,2]
[314917898,1708638537467,-164.66307769,0.00029261,2]
[314917899,1708638537491,-155.0,0.00029528,2]
[314917900,1708638537514,-150.0,0.00029529,2]
[314917901,1708638537537,-1994.53,0.00029532,2]
[314917902,1708638537560,-254.51,0.00029532,2]
[314917903,1708638537583,-200.0,0.00029532,2]
[314917904,1708638537605,-385.66760951,0.00029582,2]
[314917905,1708638537628,-155.0,0.00030138,2]
[314917906,1708638537650,-499.99,0.00030138,2]
[314917907,1708638537672,-1936.3,0.00030378,2]
[314917908,1708638537694,-200.0,0.00030382,2]
[314917909,1708638537718,-483.83,0.0003042,2]
[314917910,1708638537739,-484.27,0.00030421,2]
[314917911,1708638537766,-800.0,0.00030425,2]
[314917912,1708638537789,-200.0,0.0003045,2]
[314917913,1708638537813,-2821.18,0.00030468,2]
[314917914,1708638537835,-2000.0,0.00030474,2]
[314917915,1708638537861,-514.14,0.00030475,2]
[314917916,1708638537886,-1454.23,0.00030497,2]
[314917917,1708638537908,-250.0,0.00030527,2]
[314917918,1708638537934,-8480.58171656,0.00030543,2]
[314917921,1708638557646,-808.02,0.00029141,2]
[314917922,1708638557669,-14191.98,0.00030543,2]
[314917954,1708638632149,-583.71000234,0.00030543,2]
[314917955,1708638632163,-404.39,0.00030543,2]
[314917956,1708638632175,-239.3382811,0.00030543,2]
[314917957,1708638632186,-152.63,0.00030767,2]
[314917958,1708638632197,-749.43475578,0.0003077,2]
[314917959,1708638632331,-250.56524422,0.0003077,2]
[314917960,1708638632342,-676.25,0.00030771,2]
[314917961,1708638632353,-53.13325695,0.00030771,2]
[314917962,1708638632366,-641.78023561,0.00030771,2]
[314917963,1708638632450,-550.0,0.00030771,2]
[314917969,1708638638120,-7221.5192,0.0002922,2]
[314917970,1708638638131,-607.50650744,0.00030771,2]
[314917971,1708638638143,-150.0,0.00030771,2]
[314917972,1708638638154,-160.26,0.000308,2]
[314917973,1708638638165,-150.0,0.00030833,2]
[314917974,1708638638180,-650.48877231,0.00031,3]
[314917975,1708638638240,-249.51122769,0.00031,3]
[314917976,1708638638252,-250.0,0.00031038,2]
[314917977,1708638638263,-2558.02,0.00031038,2]
[314917978,1708638638275,-203.6,0.00031047,2]
[314917979,1708638638287,-170.99,0.00031048,2]
[314917980,1708638638299,-500.0,0.00031061,2]
[314917981,1708638638310,-266.0,0.00031181,2]
[314917982,1708638638321,-221.33,0.00031253,2]
[314917983,1708638638332,-808.02,0.00031404,2]
[314917984,1708638638343,-158.04021491,0.00031508,2]
[314917985,1708638638353,-160.60612213,0.00031537,4]
[314917986,1708638638365,-206.0,0.00031617,2]
[314917987,1708638638376,-266.0,0.00031729,2]
[314917988,1708638638388,-182.25,0.00031789,2]
[314917989,1708638638399,-160.26,0.00031826,2]
[314917990,1708638638410,-457.02,0.000319,2]
[314917991,1708638638422,-872.76,0.00032055,2]
[314917993,1708638638433,-727.73,0.00032055,2]
[314917995,1708638638444,-412.88,0.00032055,2]
[314917997,1708638638455,-412.88,0.00032055,2]
[314917998,1708638638466,-412.88,0.00032055,2]
[314918000,1708638638478,-1337.22911696,0.000321,2]
[314918001,1708638638489,-579.85,0.0003212,2]
[314918002,1708638638502,-1454.23,0.0003214,2]
[314918003,1708638638513,-379.89285485,0.00032248,4]
[314918004,1708638638524,-575.23312608,0.00032254,2]
[314918005,1708638638538,-766.39571952,0.00032254,2]
[314918006,1708638638549,-266.0,0.00032277,2]
[314918007,1708638638561,-465.508,0.00032289,2]
[314918008,1708638638572,-2694.0,0.00032289,2]
[314918009,1708638638587,-458.0,0.00032289,2]
[314918010,1708638638598,-955.0,0.00032289,2]
[314918011,1708638638609,-533.0,0.00032289,2]
[314918012,1708638638621,-600.0,0.00032289,2]
[314918013,1708638638632,-216.0,0.00032289,2]
[314918014,1708638638642,-1257.0,0.00032289,2]
[314918015,1708638638653,-1231.0,0.00032289,2]
[314918016,1708638638664,-1953.0,0.00032289,2]
[314918017,1708638638674,-430.0,0.00032289,2]
[314918018,1708638638685,-780.76697251,0.00032289,2]
[314918019,1708638638699,-78.23302749,0.00032289,2]
[314918020,1708638638710,-612.22697251,0.00032289,2]
[314918021,1708638638733,-386.98702749,0.00032289,2]
[314918022,1708638638744,-276.0,0.00032289,2]
[314918023,1708638638755,-1742.815,0.00032289,2]
[314918024,1708638638766,-338.0,0.00032289,2]
[314918025,1708638638777,-240.02134351,0.00032289,2]
[314918027,1708638640740,-61.97865649,0.00032289,2]
[314918028,1708638640752,-322.0,0.00032289,2]
[314918029,1708638640763,-213.34134351,0.00032289,2]
[314918030,1708638640777,-241.65865649,0.00032289,2]
[314918031,1708638640788,-390.0,0.00032289,2]
[314918032,1708638640804,-484.40075675,0.00032289,2]
[314918033,1708638640817,-4661.38024325,0.00032289,2]
[314918034,1708638640828,-1039.0,0.00032289,2]
[314918035,1708638640838,-150.0,0.00032289,2]
[314918036,1708638640849,-834.568549,0.00032325,2]
[314918037,1708638640860,-3000.0,0.0003234,2]
[314918038,1708638640871,-1763.53507363,0.00032362,2]
[314918039,1708638640885,-10875.88311705,0.00032362,2]
[314918040,1708638640896,-1000.0,0.00032364,2]
[314918041,1708638640907,-2500.0,0.00032364,2]
[314918042,1708638640917,-151.26368539,0.00032376,2]
[314918043,1708638640928,-953.44656334,0.00032382,6]
[314918044,1708638640938,-492.34314363,0.00032382,2]
[314918045,1708638641590,-250.0,0.00032424,2]
[314918046,1708638641614,-299.68685482,0.00032463,4]
[314918047,1708638641641,-520.64462561,0.00032464,4]
[314918048,1708638641663,-531.05350349,0.00032464,2]
[314918049,1708638641674,-4262.1758,0.00032464,2]
[314918050,1708638641684,-261193.50270747,0.00032464,2]
[314918051,1708638641696,-824.49922535,0.00032464,2]
[314918052,1708638641716,-345355.50686718,0.00032464,2]
[314918053,1708638641726,-210.0,0.00032482,3]
[314918054,1708638641735,-1341.6288456,0.00032551,2]
[314918055,1708638641745,-553.0757514,0.00032563,15]
[314918056,1708638641756,-16687.43141528,0.00032563,3]
[314918058,1708638641766,-595216.62838591,0.00032564,4]
[314918061,1708638641778,-322.05534895,0.00032564,4]
[314918064,1708638641802,-977.12024034,0.00032564,4]
[314918066,1708638641813,-2917.88621033,0.00032564,4]
[314918068,1708638641825,-18728.80060288,0.00032564,4]
[314918075,1708638643187,-3817.62965012,0.00032564,4]
[314918076,1708638643200,-66615.4380326,0.00032564,4]
[314918077,1708638643213,-2021.21892698,0.00032564,4]
[314918078,1708638643225,-21549.65304106,0.00032564,4]
[314918079,1708638643971,-1080.13999791,0.00032564,4]
[314918080,1708638644110,-24153.51342501,0.00032564,4]
[314918081,1708638644126,-11955.20439353,0.00032564,4]
[314918082,1708638644139,-17315.49351,0.00032564,4]
[314918083,1708638644153,-19444.69856,0.00032564,4]
[314918084,1708638644231,-1979.05308423,0.00032564,4]
[314918087,1708638644242,-12808.83252672,0.00032564,4]
[314918088,1708638644251,-10840.68315326,0.00032564,2]
[314918114,1708638649336,-226.0,0.00031481,2]
[314918115,1708638649345,-226.0,0.00032029,2]
[314918116,1708638649355,-89159.31684674,0.00032564,2]
[314918117,1708638649364,-122074.25433385,0.00032564,2]
[314918118,1708638649397,-2979.89999996,0.00032564,2]
[314918119,1708638670048,29094.08404803,0.00023,2]
[314918120,1708638670084,143622.85215562,0.00023,2]
[314918123,1708639025197,171.72,0.00028685,120]
[314918124,1708639129511,-208.41225645,0.00025089,2]
[314918125,1708639129525,-22.1754871,0.00025089,2]
[314918126,1708639134861,750.0,0.00025,3]
[314918127,1708639136033,800.0,0.00027,3]
[314918128,1708639165396,-208.0,0.0002509,2]
[314918131,1708639786622,328.09421298,0.0002786,30]
[314918191,1708639834877,-0.46357501,0.0002509,2]
[314918193,1708639834901,-781.86,0.00026259,2]
[314918194,1708639834920,-976.91247797,0.000263,2]
[314918195,1708639834932,-824.0,0.000263,2]
[314918196,1708639834944,-208.9864522,0.000263,2]
[314918197,1708639834954,-206.0,0.00027617,2]
[314918198,1708639834963,-200.39339358,0.00027721,2]
[314918199,1708639834973,-186.52893422,0.00027898,2]
[314918200,1708639834989,-44.05880933,0.00027898,2]
[314918201,1708639834998,-410.97365807,0.00027899,2]
[314918202,1708639835020,-267.92364812,0.00027899,2]
[314918203,1708639835030,-23.66409543,0.00027899,2]
[314918204,1708639835061,-976.33590457,0.00027899,2]
[314918205,1708639835071,-356.96662493,0.00027899,2]
[314918208,1708639838319,-643.03337507,0.00027899,2]
[314918209,1708639838329,-1934.74068764,0.000279,2]
[314918210,1708639838341,-129809.31360404,0.000279,2]
[314918211,1708639838353,-6958.74742733,0.000279,2]
[314918212,1708639838387,-293.17051066,0.000279,2]
[314918213,1708639838400,-2183.19584611,0.000279,2]
[314918214,1708639838412,-1697.05221973,0.000279,2]
[314918215,1708639838506,-45955.12714744,0.000279,2]
[314918216,1708639838517,-531.79482725,0.000279,2]
[314918217,1708639838563,-3533.88886504,0.000279,2]
[314918247,1708639841054,-5272.08837609,0.000279,2]
[314918248,1708639841070,-40829.551185,0.000279,2]
[314918249,1708639841108,-5308.98780048,0.000279,2]
[314918250,1708639841118,-161.6774481,0.00027966,2]
[314918251,1708639841129,-241.91,0.00028037,2]
[314918252,1708639841139,-500.0,0.0002805,2]
[314918253,1708639841150,-1153.74,0.00028066,2]
[314918254,1708639841162,-420.55,0.00028066,2]
[314918255,1708639841175,-1685.67,0.00028066,2]
[314918256,1708639841185,-1827.39,0.00028075,2]
[314918257,1708639841195,-290.57,0.00028109,2]
[314918258,1708639841205,-150.0,0.00028112,2]
[314918259,1708639841215,-150.0,0.00028118,2]
[314918260,1708639841224,-250.0,0.00028121,2]
[314918261,1708639841233,-2000.0,0.00028138,2]
[314918262,1708639841244,-476.52,0.0002817,2]
[314918263,1708639841256,-162.88,0.00028201,2]
[314918264,1708639841266,-250.0,0.00028201,2]
[314918265,1708639841275,-99.10262259,0.00028201,2]
[314918268,1708639843314,-704.58737741,0.00028201,2]
[314918269,1708639843324,-23448.9260476,0.00028231,2]
[314918270,1708639843337,-451.0739524,0.00028231,2]
[314918271,1708639843346,-160.49,0.00028257,10]
[314918272,1708639843356,-290.57,0.00028272,2]
[314918273,1708639843367,-200.0,0.00028316,2]
[314918274,1708639843376,-178.34,0.00028337,2]
[314918275,1708639843385,-563.54,0.00028367,2]
[314918276,1708639843394,-290.57,0.00028434,2]
[314918277,1708639843405,-781.86,0.00028523,2]
[314918278,1708639843415,-290.57,0.00028596,2]
[314918279,1708639843425,-8748.19044113,0.00028703,2]
[314918280,1708639843437,-3688.80955887,0.00028703,2]
[314918281,1708639843447,-290.57,0.00028759,2]
[314918282,1708639843458,-161.67744809,0.00028883,2]
[314918283,1708639843468,-290.57,0.00028921,2]
[314918284,1708639843477,-481.46,0.00028984,2]
[314918285,1708639843487,-188.06,0.00028999,2]
[314918286,1708639843496,-200.0,0.00028999,2]
[314918287,1708639843505,-850.0,0.00029,3]
[314918288,1708639843514,-165.63,0.00029016,2]
[314918289,1708639843523,-178.34,0.00029076,2]
[314918290,1708639843532,-290.57,0.00029084,2]
[314918291,1708639843541,-1060.01912833,0.00029121,4]
[314918292,1708639843550,-160.49,0.0002918,10]
[314918293,1708639843560,-1000.0,0.00029221,2]
[314918294,1708639843569,-290.57,0.00029246,2]
[314918295,1708639843578,-290.57,0.00029408,2]
[314918296,1708639843587,-290.57,0.00029571,2]
[314918297,1708639843596,-162.88,0.00029611,2]
[314918298,1708639843605,-151.87610596,0.00029638,2]
[314918299,1708639843614,-206.0,0.00029641,5]
[314918300,1708639843623,-151.87610596,0.0002967,2]
[314918301,1708639843631,-151.87610596,0.00029703,2]
[314918302,1708639843641,-1153.74,0.0002971,2]
[314918303,1708639843650,-155.0,0.00029719,2]
[314918304,1708639843659,-5304.33905683,0.0002972,2]
[314918305,1708639843670,-19444.69856,0.0002972,2]
[314918306,1708639843690,-3990.97001315,0.0002972,2]
[314918307,1708639843701,-8905.5291636,0.0002972,2]
[314918308,1708639843712,-373.5132,0.0002972,2]
[314918309,1708639843732,-2937.17592683,0.0002972,2]
[314918310,1708639844316,-1430.4,0.0002972,2]
[314918311,1708639844328,-2459.53667299,0.0002972,2]
[314918321,1708639846349,-1000.18527722,0.0002972,2]
[314918322,1708639849393,-1574.49978919,0.0002972,2]
[314918335,1708640524455,206.0,0.00027909,5]
[314918337,1708640855982,160.49,0.00027493,10]
[314918338,1708640884882,206.0,0.00024617,2]
[314918339,1708640885309,206.0,0.00027144,6]
[314918340,1708640948634,750.0,0.00025,3]
[314918342,1708640964140,-157.13050077,0.0002551,2]
[314918343,1708640964160,-352.0,0.00025603,2]
[314918344,1708640964180,-1212.20411955,0.00025604,2]
[314918345,1708640964200,-767.00633032,0.00025605,2]
[314918377,1708641031598,-3049.23440343,0.00025638,2]
[314918378,1708641031608,-763.92,0.00025639,2]
[314918379,1708641031619,-157.13050076,0.00025867,2]
[314918380,1708641031629,-157.13050076,0.00026223,2]
[314918381,1708641031638,-157.13050076,0.0002658,2]
[314918382,1708641031647,-157.13050076,0.00026936,2]
[314918383,1708641031660,-736.04050948,0.00027,3]
[314918384,1708641031671,-63.95949052,0.00027,3]
[314918385,1708641031680,-200.30026865,0.00027008,2]
[314918386,1708641031690,-359.24757257,0.00027292,2]
[314918387,1708641031700,-157.13050076,0.00027293,2]
[314918388,1708641031709,-150.99,0.00027293,2]
[314918389,1708641031719,-150.99,0.00027293,2]
[314918390,1708641031728,-293.95,0.00027293,2]
[314918391,1708641031738,-250.0,0.00027418,2]
[314918392,1708641031748,-251.2469,0.00027514,2]
[314918393,1708641031758,-207.458,0.00027515,2]
[314918394,1708641031767,-150.0,0.00027533,2]
[314918395,1708641031776,-164.7272675,0.00027534,2]
[314918396,1708641031797,-634.6559254,0.00027534,2]
[314918397,1708641031808,-887.96253148,0.00027534,2]
[314918398,1708641031832,-2522.9602333,0.00027534,2]
[314918399,1708641031844,-682.93268563,0.00027534,2]
[314918400,1708641031860,-591.89283355,0.00027534,2]
[314918401,1708641031884,-1556.12664025,0.00027534,2]
[314918415,1708641037530,-3539.24352001,0.00027534,2]
[314918416,1708641037601,-2119.7411335,0.00027534,2]
[314918417,1708641037619,-402.12299413,0.00027534,2]
[314918418,1708641037684,-10797.63423525,0.00027534,2]
[314918419,1708641037693,-200.0,0.00027545,2]
[314918420,1708641037702,-1000.0,0.00027617,2]
[314918421,1708641037712,-190.78,0.00027633,2]
[314918422,1708641037721,-157.13050076,0.00027649,2]
[314918423,1708641037730,-1125.02,0.00027671,2]
[314918424,1708641037740,-250.0,0.00027678,2]
[314918425,1708641037749,-2015.45,0.0002776,2]
[314918426,1708641037758,-1522.82,0.00027871,2]
[314918427,1708641037768,-645.05800157,0.00027875,2]
[314918429,1708641037798,-277.27199843,0.00027875,2]
[314918431,1708641037809,-150.25340398,0.00027881,2]
[314918433,1708641037819,-72.47459759,0.00027896,2]
[314918468,1708641040076,-778.87540241,0.00027896,2]
[314918469,1708641040085,-565.12459759,0.00027901,2]
[314918470,1708641040147,-621.26,0.00027901,2]
[314918471,1708641040158,-813.61540241,0.00027901,2]
[314918472,1708641040168,-763.92,0.00027903,2]
[314918473,1708641040177,-2015.45,0.00027921,2]
[314918474,1708641040186,-137.6684399,0.00027923,2]
[314918475,1708641040197,-12.3315601,0.00027923,2]
[314918476,1708641040206,-150.0,0.00027959,2]
[314918477,1708641040216,-157.13050076,0.00028006,2]
[314918478,1708641040225,-2015.45,0.00028081,2]
[314918479,1708641040234,-187.4,0.00028086,2]
[314918480,1708641040243,-162.88,0.00028109,2]
[314918481,1708641040253,-499.99,0.00028109,2]
[314918482,1708641040262,-159.99,0.00028241,2]
[314918483,1708641040271,-2015.45,0.00028241,2]
[314918484,1708641040281,-1279.61,0.00028243,2]
[314918485,1708641040291,-157.13050076,0.00028362,2]
[314918486,1708641040299,-2015.45,0.00028402,2]
[314918487,1708641040309,-2015.45,0.00028562,2]
[314918488,1708641040317,-166.6,0.00028659,2]
[314918489,1708641040327,-157.13050076,0.00028719,2]
[314918490,1708641040336,-2015.45,0.00028722,2]
[314918491,1708641040345,-159.99,0.00028806,2]
[314918492,1708641040355,-250.0,0.0002888,2]
[314918493,1708641040364,-2015.45,0.00028883,2]
[314918494,1708641040373,-850.0,0.00029,3]
[314918495,1708641040382,-190.78,0.00029014,2]
[314918496,1708641040392,-2015.45,0.00029043,2]
[314918497,1708641040400,-157.13050076,0.00029075,2]
[314918498,1708641040410,-2133.9791089,0.00029111,2]
[314918499,1708641040420,-250.0,0.00029154,2]
[314918500,1708641040430,-2015.45,0.00029204,2]
[314918501,1708641040439,-1337.22911696,0.00029225,2]
[314918502,1708641040448,-159.99,0.00029371,2]
[314918503,1708641040458,-157.13050076,0.00029432,2]
[314918504,1708641040467,-1337.22911696,0.00029504,2]
[314918505,1708641040476,-922.33,0.00029519,2]
[314918506,1708641040486,-187.4,0.0002955,2]
[314918507,1708641040495,-206.0,0.00029672,10]
[314918508,1708641040504,-607.52872213,0.00029678,2]
[314918509,1708641040513,-1000.0,0.0002968,2]
[314918510,1708641040523,-1237.1873,0.0002968,2]
[314918511,1708641040531,-2454.1162,0.0002968,2]
[314918512,1708641040545,-927.51673728,0.0002968,4]
[314918513,1708641040554,-1000.0,0.0002968,2]
[314918514,1708641040563,-14083.6962,0.0002968,2]
[314918515,1708641040573,-2500.0,0.0002968,2]
[314918516,1708641040582,-33124.9111157,0.0002972,2]
[314918517,1708641040591,-155.0,0.00029779,2]
[314918518,1708641040600,-186.45581973,0.0002978,2]
[314918519,1708641040610,-2333.4127,0.0002978,2]
[314918520,1708641040621,-211.0,0.0002978,2]
[314918521,1708641040631,-1149.5119,0.0002978,2]
[314918522,1708641040641,-500.0,0.0002978,2]
[314918523,1708641040651,-245000.0,0.0002978,2]
[314918524,1708641040660,-161.7297,0.0002978,2]
[314918525,1708641040670,-6954.1035,0.0002978,2]
[314918526,1708641040680,-79719.3536,0.0002978,2]
[314918527,1708641040838,-157.13050076,0.00029788,2]
[314918528,1708641040852,-167.86365293,0.00029799,2]
[314918529,1708641040861,-151.26368539,0.00029799,2]
[314918530,1708641040870,-633.30123119,0.00029799,2]
[314918531,1708641040879,-531.05350349,0.00029799,2]
[314918532,1708641040889,-718.2843612,0.00029799,2]
[314918533,1708641040898,-812.19798481,0.00029799,2]
[314918534,1708641040907,-162.02429312,0.00029799,2]
[314918535,1708641040917,-954.43907562,0.00029799,2]
[314918536,1708641040926,-158.99,0.00029841,2]
[314918537,1708641040935,-151.022306,0.00029878,2]
[314918538,1708641040945,-151.022306,0.00029878,2]
[314918539,1708641040955,-151.022306,0.00029878,2]
[314918540,1708641040964,-151.022306,0.00029878,2]
[314918541,1708641040974,-151.022306,0.00029878,2]
[314918542,1708641040983,-151.022306,0.00029878,2]
[314918543,1708641040992,-151.022306,0.00029878,2]
[314918544,1708641041001,-151.022306,0.00029878,2]
[314918545,1708641041011,-230.58774355,0.00029879,2]
[314918546,1708641041020,-1584801.61594623,0.0002988,2]
[314918547,1708641041029,-15068.52214277,0.000299,2]
[314918548,1708641041038,-159.99,0.00029935,2]
[314918549,1708641041048,-1341.62884561,0.00029985,2]
[314918550,1708641041057,-157.85574695,0.0003,2]
[314918551,1708641041066,-280.62228,0.0003,3]
[314918552,1708641041076,-3000.0,0.0003,2]
[314918553,1708641041085,-1337.22911696,0.00030035,2]
[314918554,1708641041095,-158.99,0.00030112,2]
[314918555,1708641041104,-763.92,0.00030167,2]
[314918556,1708641041113,-160.49,0.00030187,10]
[314918557,1708641041123,-196.92,0.00030224,2]
[314918558,1708641041132,-718.28436109,0.00030232,2]
[314918559,1708641041141,-154.33,0.00030279,2]
[314918560,1708641041151,-158.99,0.00030383,2]
[314918561,1708641041160,-190.78,0.00030396,2]
[314918562,1708641041170,-927.51673726,0.00030396,5]
[314918563,1708641041180,-159.99,0.000305,2]
[314918565,1708641041189,-158.99,0.00030654,2]
[314918566,1708641041198,-718.28436109,0.00030664,2]
[314918568,1708641041208,-200000.0,0.0003069,7]
[314918569,1708641041217,-162.88,0.0003092,2]
[314918570,1708641041226,-158.99,0.00030926,2]
[314918571,1708641041235,-22681.39890629,0.00031,2]
[314918572,1708641041244,-900.0,0.00031,3]
[314918573,1708641041253,-410.3,0.00031056,2]
[314918574,1708641041263,-159.99,0.00031065,2]
[314918575,1708641041272,-1000.0,0.00031069,2]